Cogmind - Beta 15 @@@ ROGUE MODE // 2025.09.22 @ 13:07:41 Player: Tereza Result: Destroyed by AG-23794 with Assembled Focal Cannon Performance ------------- Evolutions (3) 1500 Regions Visited (12) 2400 Robots Destroyed (138) 690 Value Destroyed (4360) 4360 Prototype IDs (7) 140 Alien Tech Used (0) 0 Bonus (3101) 3101 TOTAL SCORE: 12191 Bonus ------- High Alert Combat Kills 124 Follower Combat Kills 177 Entered Garrisons 200 Met Imprinter 300 Destroyed Z-Imprinter 1000 Triggered Deep Caves Wall 500 Exposed GOLEM Chamber 500 Acquired ECA 300 Cogmind --------- Core Integrity 0/700 Matter 100/500 Energy 100/100 System Corruption 0% Temperature Cool (26) Movement Core (1550) Ox30 Location -7/Deep Caves Parts ------- > --- POWER (1) -------- (None) > --- PROPULSION (4) --- (None) > --- UTILITY (5) ------ Huge Storage Unit High-capacity Matter Pod Visual Processing Unit Core Analyzer > --- WEAPON (3) ------- Heavy Missile Launcher > --- INVENTORY (25) --- Light Nuclear Core Micro Nuclear Core Micro Nuclear Core Light Treads Light Treads Light Treads Medium Treads Cooling System Encrypted Comm Array Hacking Suite Hacking Drone Bay (1/1) Improved Assault Rifle Enhanced Autogun Gauss Rifle Gauss Rifle Flak Gun Remote Datajack Remote Datajack Plasma Cutter Peak State ------------ > --- POWER ------------ Hybrid Deuterium Engine > --- PROPULSION ------- Light Treads Improved Treads Advanced Treads Medium Treads > --- UTILITY ---------- Huge Storage Unit Zionite Biocell Visual Processing Unit Core Analyzer Hacking Drone Bay > --- WEAPON ----------- Enhanced Autogun Gauss Rifle Heavy Rocket Launcher > --- INVENTORY -------- Light Nuclear Core Micro Nuclear Core Micro Nuclear Core Light Treads Light Treads Light Treads Medium Treads Cooling System High-capacity Matter Pod Encrypted Comm Array Hacking Suite Improved Assault Rifle Enhanced Autogun Gauss Rifle Gauss Rifle Gauss Rifle Flak Gun Heavy Missile Launcher Remote Datajack Remote Datajack Plasma Cutter [Rating: 54] Favorites ----------- Power Hybrid Deuterium Engine Engine Hybrid Deuterium Engine Power Core Light Nuclear Core Propulsion Light Treads Treads Light Treads Wheel Wheel Utility Huge Storage Unit Device Seismic Detector Storage Huge Storage Unit Processor Visual Processing Unit Protection Hardened Medium Armor Plating Weapon Enhanced Autogun Ballistic Gun Enhanced Autogun Ballistic Cannon Light Cannon Launcher Heavy Rocket Launcher Special Weapon Plasma Cutter Special Melee Weapon Datajack Build | -11 -10 -9 -9 -9 -8 -8 -8 -7 -7 -7 -7 -7 ------- Run | Yrd Mat Mat Min Exi Min Mat Gar Fac Low Low Zio Dee Slots Evolved 6 | . . 2 . . . 2 . 2 . . . . Power . | . . . . . . . . . . . . . Propulsion 2 | . . 1 . . . 1 . . . . . . Utility 3 | . . 1 . . . . . 2 . . . . Weapon 1 | . . . . . . 1 . . . . . . Parts Attached 82 | 6 6 18 1 2 1 2 16 16 1 2 . 11 Power 8 | 1 . 2 . . . . 2 3 . . . . Engine 6 | 1 . 2 . . . . 2 1 . . . . Core 2 | . . . . . . . . 2 . . . . Reactor . | . . . . . . . . . . . . . Propulsion 26 | 2 3 5 . . . 1 6 5 1 . . 3 Treads 25 | 2 2 5 . . . 1 6 5 1 . . 3 Leg . | . . . . . . . . . . . . . Wheel 1 | . 1 . . . . . . . . . . . Hover . | . . . . . . . . . . . . . Flight . | . . . . . . . . . . . . . Utility 26 | 1 3 6 1 . 1 . 2 5 . 1 . 6 Device 10 | . 1 2 1 . 1 . . 1 . 1 . 3 Storage 7 | 1 2 1 . . . . 1 . . . . 2 Processor 2 | . . . . . . . . 1 . . . 1 Hackware . | . . . . . . . . . . . . . Protection 7 | . . 3 . . . . 1 3 . . . . Artifact . | . . . . . . . . . . . . . Weapon 22 | 2 . 5 . 2 . 1 6 3 . 1 . 2 Energy Gun . | . . . . . . . . . . . . . Energy Cannon . | . . . . . . . . . . . . . Ballistic Gun 15 | 2 . 2 . 2 . 1 4 3 . . . 1 Ballistic Cannon 1 | . . 1 . . . . . . . . . . Launcher 4 | . . 2 . . . . . . . 1 . 1 Special Weapon 1 | . . . . . . . 1 . . . . . Impact Weapon . | . . . . . . . . . . . . . Slashing Weapon . | . . . . . . . . . . . . . Piercing Weapon . | . . . . . . . . . . . . . Special Melee Weapon 1 | . . . . . . . 1 . . . . . Unidentified Prototypes 5 | . . 1 . . . . . 1 . . . 3 Parts Lost 40 | . 1 4 1 . 1 . 13 6 . . . 14 Power 3 | . . 1 . . . . 1 . . . . 1 Propulsion 14 | . 1 . . . . . 4 3 . . . 6 Utility 11 | . . 2 . . 1 . 3 2 . . . 3 Weapon 12 | . . 1 1 . . . 5 1 . . . 4 Highest Loss Streak 12 | . 1 1 1 . 1 . 12 2 . . . 10 To Critical Strikes 1 | . . . . . . . 1 . . . . . Average Backups 22 | 3 14 23 25 25 23 21 21 23 25 25 25 22 Power 2 | . 1 1 1 1 1 1 2 3 3 3 3 3 Propulsion 5 | 1 2 5 7 7 7 6 4 5 5 6 6 5 Utility 5 | . 3 5 7 7 7 7 6 3 4 4 4 4 Weapon 7 | . 7 10 8 7 6 5 5 7 8 8 7 6 Tool/Special . | . . . . . . . . . . . . . Unused Backups 30 | . . 11 . . . . . 6 1 . 1 11 Power 4 | . . 1 . . . . . 1 1 . . 1 Propulsion 5 | . . 2 . . . . . . . . . 3 Utility 3 | . . . . . . . . 1 . . . 2 Weapon 15 | . . 7 . . . . . 4 . . 1 3 Tool/Special 3 | . . 1 . . . . . . . . . 2 Average Slot Usage (%) 96 | . 98 90 99 79 99 99 92 97 100 100 100 99 Engine 7 | . 14 5 11 11 11 9 8 2 7 7 7 6 Treads 30 | . 27 31 33 33 33 36 35 29 30 30 30 29 Device 8 | . 12 13 22 22 21 18 2 2 . 6 7 4 Storage 10 | . 14 11 11 11 11 9 16 9 7 7 7 15 Processor 3 | . . . . . . . . 6 7 7 7 10 Protection 8 | . . 6 . . . . 1 16 23 15 15 6 Ballistic Gun 22 | . 28 19 21 2 22 26 25 23 23 22 22 15 Peak Build Rating 54 | 6 9 17 17 16 16 19 21 38 40 42 43 54 Average Rating 24 | 5 7 14 16 12 15 18 18 29 39 41 42 45 On Entrance 21 | . 6 9 17 14 16 15 19 19 38 40 42 43 Naked Turns . | . . . . . . . . . . . . . Heaviest Build 115 | 13 89 95 92 90 90 93 105 112 112 112 115 115 Greatest Support 93 | 40 40 60 60 60 60 80 80 80 82 82 82 93 Greatest Overweight (x) 8 | . 8 2 1 1 1 1 1 1 1 1 1 1 Average Overweight (x) 1 | . 1 1 1 1 1 1 1 1 1 1 1 1 Largest Inventory Capacity 25 | 8 25 25 25 25 25 25 25 25 25 25 25 25 Average Capacity 24 | 7 22 25 25 25 25 25 25 25 25 25 25 25 Most Carried 25 | 5 19 25 25 25 24 22 24 25 25 25 25 25 Average Carried 22 | 3 14 23 25 24 23 21 21 23 24 24 25 22 Final Capacity 25 | 8 25 25 25 25 25 25 25 25 25 25 25 25 Final Carried 25 | 5 19 25 25 24 23 21 24 25 25 25 25 19 Class Distribution -------------------- 46% | Scavenger-Tank 26% | Mutant 18% | Scavenger-Mutant 6% | Scavenger-Gunner Dominant Class ---------------- Mutant | -10/Materials Mutant | -9/Materials Scavenger-Mutant | -9/Mines Scavenger-Mutant | -9/Exiles Scavenger-Mutant | -8/Mines Scavenger-Tank | -8/Materials Scavenger-Gunner | -8/Garrison Scavenger-Tank | -7/Factory Scavenger-Tank | -7/Lower Caves Scavenger-Tank | -7/Lower Caves Scavenger-Tank | -7/Zion Gunner | -7/Deep Caves Resources | -11 -10 -9 -9 -9 -8 -8 -8 -7 -7 -7 -7 -7 ----------- Run | Yrd Mat Mat Min Exi Min Mat Gar Fac Low Low Zio Dee Matter Collected 3775 | 242 423 1039 30 . 110 95 685 630 61 332 6 122 Remotely . | . . . . . . . . . . . . . Salvage Created 5047 | 16 659 1642 . . 266 198 828 847 65 358 . 168 Parts 321 | 2 49 124 . . 14 13 48 52 3 11 . 5 Haulers Intercepted 9 | . 2 5 . . . . . 2 . . . . Recyclers Shooed 3 | . 2 1 . . . . . . . . . . Parts Field Recycled . | . . . . . . . . . . . . . Retrieved Matter . | . . . . . . . . . . . . . Parts Self-Destructed 13 | . . . . . . . . . 3 10 . . Prevented . | . . . . . . . . . . . . . Kills | -11 -10 -9 -9 -9 -8 -8 -8 -7 -7 -7 -7 -7 ------- Run | Yrd Mat Mat Min Exi Min Mat Gar Fac Low Low Zio Dee Combat Hostiles Destroyed 110 | . 18 32 . . 5 6 25 12 1 8 . 3 Guns 88 | . 18 21 . . 5 6 19 12 1 5 . 1 Cannons 8 | . . 8 . . . . . . . . . . AOE 14 | . . 3 . . . . 6 . . 3 . 2 Classes Destroyed 15 | 1 4 5 . . . . 2 2 . . . 1 Worker 4 | . . 2 . . . . . 2 . . . . Builder 1 | . . . . . . . . 1 . . . . Tunneler 1 | 1 . . . . . . . . . . . . Hauler 9 | . 2 5 . . . . . 2 . . . . Recycler 3 | . . 2 . . . . . 1 . . . . Operator 4 | . . 4 . . . . . . . . . . Watcher 6 | . 2 4 . . . . . . . . . . Swarmer 28 | . 9 9 . . . 3 7 . . . . . Grunt 44 | . 9 12 . . 5 3 7 2 . 6 . . Brawler 5 | . . 1 . . . . 3 . . 1 . . Duelist 1 | . . . . . . . 1 . . . . . Sentry 19 | . . 10 . . . . 5 3 1 . . . Hunter 4 | . . . . . . . . 3 . 1 . . Programmer 6 | . . . . . . . 2 4 . . . . Z-Technician 5 | . . . . . . . . . . . . 5 Z-Light 2 | . . . . . . . . . . . . 2 Best Kill Streak 7 | 1 7 5 . . 3 3 6 4 1 3 . 5 Combat Bots Only 7 | . 7 4 . . 3 3 6 3 1 3 . 3 Max Kills in Single Turn 5 | 1 2 2 . . 1 1 3 2 1 2 . 5 Gunslinging 1 | . 1 . . . . . 1 . . . . . Exploded 3 | . . 1 . . . . 3 . . 2 . 1 Melee . | . . . . . . . . . . . . . Uniques/NPCs Destroyed 1 | . . . . . . . . . . . . 1 Z-Imprinter (-7/Deep Caves) Combat | -11 -10 -9 -9 -9 -8 -8 -8 -7 -7 -7 -7 -7 -------- Run | Yrd Mat Mat Min Exi Min Mat Gar Fac Low Low Zio Dee Hostile Shots Fired 717 | . 59 175 3 . 17 30 164 162 18 24 . 65 Missed 200 | . 13 48 2 . 4 8 46 60 2 6 . 11 Hits 517 | . 46 127 1 . 13 22 118 102 16 18 . 54 Melee 12 | . . . . . . . 10 . . 2 . . Projectile 505 | . 46 127 1 . 13 22 108 102 16 16 . 54 Critical Strikes 10 | . . 4 . . 1 . 4 1 . . . . Damage Taken 7584 | . 517 1396 8 . 166 216 1692 1032 120 250 . 2187 Core 1185 | . 42 286 . . 32 6 115 72 29 . . 603 Absorbed by Shields 861 | . . 158 3 . 60 70 194 61 . 96 . 219 Redirected to Shielding 84 | . . 51 . . . . . 7 . 9 . 17 Regen/Repaired (Parts) 406 | . 195 91 . . . . . . . . 120 . Core Remaining (%) 70 | 100 83 . . . 20 . 78 . . . . . Volleys Fired 355 | 4 60 121 . . 14 12 49 47 3 19 . 26 Largest 3 | 2 2 2 . . 2 3 3 3 3 3 . 3 Hottest 92 | 40 40 56 . . 43 66 79 78 78 92 . 92 Shots Fired 840 | 8 120 242 1 . 28 36 129 141 9 58 . 68 Gun 753 | 8 120 186 1 . 28 36 119 141 9 55 . 50 Cannon 52 | . . 52 . . . . . . . . . . Launcher 35 | . . 4 . . . . 10 . . 3 . 18 Special . | . . . . . . . . . . . . . Kinetic 805 | 8 120 238 1 . 28 36 119 141 9 55 . 50 Thermal . | . . . . . . . . . . . . . Explosive 35 | . . 4 . . . . 10 . . 3 . 18 Electromagnetic . | . . . . . . . . . . . . . Robot Hit Streak 20 | 3 16 17 . . 18 5 20 8 6 9 . 8 Robot Miss Streak 8 | 2 5 3 . . 3 2 3 8 1 2 . 4 Penetration Max . | . . . . . . . . . . . . . Secondary Targets 9 | . 1 . . . . 2 5 1 . . . . Max Gunslinging Chain 1 | . 1 . . . . 1 1 1 . . . . Shots Hit Robots 544 | 4 71 166 . . 22 23 93 79 8 41 . 37 Core Hits 261 | 2 36 69 . . 10 12 49 39 3 18 . 23 Critical Kills 1 | . . 1 . . . . . . . . . . Critical Parts Destroyed 3 | . . 1 . . . . 1 . . 1 . . Critical Strikes 8 | . . 6 . . . . 1 . . 1 . . Destroy 4 | . . 2 . . . . 1 . . 1 . . Blast 4 | . . 4 . . . . . . . . . . Melee Attacks . | . . . . . . . . . . . . . Impact . | . . . . . . . . . . . . . Slashing . | . . . . . . . . . . . . . Piercing . | . . . . . . . . . . . . . Sneak Attacks . | . . . . . . . . . . . . . Combat Hostiles . | . . . . . . . . . . . . . Follow-up Attacks . | . . . . . . . . . . . . . Damage Inflicted 12741 | 37 847 2801 . . 267 323 2387 1313 143 1012 . 3611 Guns 7449 | 37 847 2001 . . 267 323 1432 1305 143 654 . 440 Cannons 593 | . . 593 . . . . . . . . . . Explosions 4684 | . . 200 . . . . 955 . . 358 . 3171 Melee . | . . . . . . . . . . . . . Ramming 15 | . . 7 . . . . . 8 . . . . Kinetic 8042 | 37 847 2594 . . 267 323 1432 1305 143 654 . 440 Thermal 2180 | . . . . . . . . . . . . 2180 Explosive 2504 | . . 200 . . . . 955 . . 358 . 991 Electromagnetic . | . . . . . . . . . . . . . Impact . | . . . . . . . . . . . . . Slashing . | . . . . . . . . . . . . . Piercing . | . . . . . . . . . . . . . Highest Corruption 8 | . . 2 2 2 2 . 8 1 1 1 1 . Average Corruption 2 | . . 1 2 2 2 . 7 1 1 1 1 . Corruption Purged . | . . . . . . . . . . . . . Corruption Blocked . | . . . . . . . . . . . . . Effects 103 | . . 14 5 6 9 . 39 13 5 11 1 . Message Errors 22 | . . 1 1 1 2 . 10 3 1 3 . . Matter Fused 20 | . . 1 1 3 1 . 5 2 2 4 1 . Heat Flow Errors 9 | . . . 1 . 1 . 5 2 . . . . Energy Discharges 10 | . . 3 1 . 1 . 2 3 . . . . Parts Rejected 1 | . . . . . . . 1 . . . . . Parts Fused 4 | . . 1 . 1 1 . 1 . . . . . Data Loss (minor) 17 | . . 6 . . 1 . 5 3 1 1 . . Data Loss (major) 4 | . . . . . 1 . 1 . . 2 . . Misfires 6 | . . 1 1 . . . 3 . . 1 . . Alerts 6 | . . . . 1 1 . 3 . 1 . . . Weapon Failures 4 | . . 1 . . . . 3 . . . . . Overload Shots . | . . . . . . . . . . . . . Overflow Damage 354 | . . 1 . . . . 14 . . . . 339 Projectiles . | . . . . . . . . . . . . . Explosions 354 | . . 1 . . . . 14 . . . . 339 Melee . | . . . . . . . . . . . . . Knockbacks 4 | . . 4 . . . . . . . . . . Impact 1 | . . 1 . . . . . . . . . . Kinetic 3 | . . 3 . . . . . . . . . . Secondary . | . . . . . . . . . . . . . Self-Inflicted Damage 526 | . . 40 . . . . 54 . . 42 . 390 Shots 7 | . . 2 . . . . 2 . . 2 . 1 Rammed 4 | . 1 2 . . . . . 1 . . . . Targets Rammed 5 | . 1 2 . . . . . 2 . . . . Kicked . | . . . . . . . . . . . . . Crushed 1 | . . . . . . . . 1 . . . . Highest Temperature 234 | . 18 31 221 . 167 20 213 234 126 104 . 150 Average Temperature 45 | . 8 8 112 . 41 9 42 53 67 46 . 62 Received Heat Transfer 1867 | . 147 506 . . 92 90 438 204 36 60 . 294 Siege Activations . | . . . . . . . . . . . . . Martial Activations . | . . . . . . . . . . . . . Shielding Activations . | . . . . . . . . . . . . . Robots Disrupted . | . . . . . . . . . . . . . Combat Hostiles . | . . . . . . . . . . . . . Robots Corrupted . | . . . . . . . . . . . . . Combat Hostiles . | . . . . . . . . . . . . . Parts Fried . | . . . . . . . . . . . . . Impact Corruptions . | . . . . . . . . . . . . . Robots Melted . | . . . . . . . . . . . . . Combat Hostiles . | . . . . . . . . . . . . . Parts Melted 1 | . . . . . . . 1 . . . . . Heat Transferred . | . . . . . . . . . . . . . Parts Sabotaged . | . . . . . . . . . . . . . Parts Stolen . | . . . . . . . . . . . . . Parts Stripped . | . . . . . . . . . . . . . Power Chain Reactions . | . . . . . . . . . . . . . Alert | -11 -10 -9 -9 -9 -8 -8 -8 -7 -7 -7 -7 -7 ------- Run | Yrd Mat Mat Min Exi Min Mat Gar Fac Low Low Zio Dee Maximum Alert Level 3 | . . 2 . . . . 3 2 . . . . Low Security (%) 57 | 100 100 51 100 . 100 100 15 34 . . . . Level 1 25 | . . 32 . . . . 23 56 . . . . Level 2 13 | . . 16 . . . . 38 8 . . . . Level 3 3 | . . . . . . . 22 . . . . . Level 4 . | . . . . . . . . . . . . . Level 5 . | . . . . . . . . . . . . . High Security . | . . . . . . . . . . . . . Max Security . | . . . . . . . . . . . . . Peak Influence 901 | 5 196 472 178 . 78 110 901 472 . . . . Initial 472 | . . . 178 . . . 67 472 . . . . Average 222 | . 74 215 91 . 17 47 519 244 . . . . Influence Increases 3525 | 5 563 1041 . . 148 144 984 415 20 205 . . Destroy 0b10 Robot/C 2240 | . 360 640 . . 120 120 580 240 20 160 . . Destroy 0b10 Robot/NC 140 | 5 20 85 . . . . . 30 . . . . Destroy Leader 500 | . 78 198 . . 20 20 40 114 . 30 . . Allied During Kill 23 | . . . . . 8 . 15 . . . . . Successful Hack 142 | . 45 35 . . . 4 28 30 . . . . Disable Machine 45 | . . 30 . . . . 15 . . . . . Anti-Garrison Action 150 | . . . . . . . 150 . . . . . Destroy Structure 75 | . . 38 . . . . 36 1 . . . . Lose Combat Pursuer 210 | . 60 15 . . . . 120 . . 15 . . Influence Decreases 3525 | 5 563 582 459 . 148 40 187 1103 233 165 40 . Entered New Map 866 | . . . 281 . . . 37 429 79 . 40 . Time Decay 2361 | 5 553 552 168 . 110 40 . 614 154 165 . . Lost Part 240 | . 10 30 10 . . . 130 60 . . . . Lost Ally 58 | . . . . . 38 . 20 . . . . . Squads Dispatched 14 | . 3 3 . . . 2 . 6 . . . . Investigation 3 | . 2 . . . . 1 . . . . . . Extermination 5 | . . . . . . . . 5 . . . . Reinforcement 5 | . 1 3 . . . . . 1 . . . . Assault . | . . . . . . . . . . . . . Garrison 1 | . . . . . . 1 . . . . . . Intercept . | . . . . . . . . . . . . . Searches Triggered . | . . . . . . . . . . . . . Construction Impeded 1 | . . . . . . . . 1 . . . . Haulers Reinforced . | . . . . . . . . . . . . . Active Scanning Responses . | . . . . . . . . . . . . . Cargo Convoy Interrupts . | . . . . . . . . . . . . . Stealth | -11 -10 -9 -9 -9 -8 -8 -8 -7 -7 -7 -7 -7 --------- Run | Yrd Mat Mat Min Exi Min Mat Gar Fac Low Low Zio Dee Distress Signals 4 | . 2 2 . . . . . . . . . . Communications Jammed . | . . . . . . . . . . . . . Distress Signals . | . . . . . . . . . . . . . Times Spotted 168 | . 28 48 1 . 6 6 36 16 1 9 . 17 Peak Tracking Total 13 | . 4 5 1 . 3 3 9 4 1 4 . 13 Tactical Retreats 12 | . 3 1 . . . . 7 . . 1 . . Traps | -11 -10 -9 -9 -9 -8 -8 -8 -7 -7 -7 -7 -7 ------- Run | Yrd Mat Mat Min Exi Min Mat Gar Fac Low Low Zio Dee Traps Triggered 15 | . 3 3 . . . . 8 1 . . . . Indirectly . | . . . . . . . . . . . . . Trap Hack Attempts . | . . . . . . . . . . . . . Triggered . | . . . . . . . . . . . . . Disarmed . | . . . . . . . . . . . . . Reprogrammed . | . . . . . . . . . . . . . Reused . | . . . . . . . . . . . . . Traps Extracted . | . . . . . . . . . . . . . Installed . | . . . . . . . . . . . . . Triggered . | . . . . . . . . . . . . . Machines | -11 -10 -9 -9 -9 -8 -8 -8 -7 -7 -7 -7 -7 ---------- Run | Yrd Mat Mat Min Exi Min Mat Gar Fac Low Low Zio Dee Machines Disabled 11 | . . 3 . . . . 2 . . . 3 3 Max in Single Turn 1 | . . 1 . . . . 1 . . . 1 1 Garrison Relay 1 | . . . . . . . 1 . . . . . Machines Repaired . | . . . . . . . . . . . . . Machines Dismantled 4 | . . . . . . . 1 . . . 3 . Machines Sabotaged . | . . . . . . . . . . . . . Overloaded Fab Kills . | . . . . . . . . . . . . . Hacking | -11 -10 -9 -9 -9 -8 -8 -8 -7 -7 -7 -7 -7 --------- Run | Yrd Mat Mat Min Exi Min Mat Gar Fac Low Low Zio Dee Machines Accessed 25 | . 8 8 . 1 . 2 3 3 . . . . Terminals 18 | . 6 6 . . . 1 3 2 . . . . Fabricators . | . . . . . . . . . . . . . Repair Stations 2 | . 1 1 . . . . . . . . . . Recycling Units 2 | . 1 1 . . . . . . . . . . Scanalyzers . | . . . . . . . . . . . . . Garrison Access 2 | . . . . . . 1 . 1 . . . . Total Hacks 63 | . 24 23 . 4 . 4 4 4 . . . . Successful 34 | . 13 12 . 4 . 1 2 2 . . . . Failed 27 | . 10 10 . . . 3 2 2 . . . . Catastrophic 4 | . 2 . . . . 1 . 1 . . . . Database Lockouts 2 | . 1 1 . . . . . . . . . . Manual 26 | . 14 9 . . . 2 . 1 . . . . Terminals 47 | . 19 19 . . . 2 4 3 . . . . Fabricators . | . . . . . . . . . . . . . Repair Stations 7 | . 4 3 . . . . . . . . . . Recycling Units 2 | . 1 1 . . . . . . . . . . Scanalyzers . | . . . . . . . . . . . . . Garrison Access 3 | . . . . . . 2 . 1 . . . . Terminal Hacks 22 | . 8 7 . 4 . . 2 1 . . . . Record 4 | . . . . 4 . . . . . . . . Robot Analysis 7 | . 5 2 . . . . . . . . . . Prototype ID Bank 1 | . 1 . . . . . . . . . . . Level Access Points 1 | . . . . . . . . 1 . . . . Emergency Access Points 1 | . . . . . . . 1 . . . . . Alert Level 1 | . . 1 . . . . . . . . . . Locate Traps 2 | . 1 1 . . . . . . . . . . Security Status 1 | . . 1 . . . . . . . . . . Reinforcement Status 1 | . 1 . . . . . . . . . . . Hauler Manifests 1 | . . 1 . . . . . . . . . . Registered Components 1 | . . 1 . . . . . . . . . . Patrol Navigation 1 | . . . . . . . 1 . . . . . Fabricator Hacks . | . . . . . . . . . . . . . Repair Station Hacks 6 | . 4 2 . . . . . . . . . . Scan Component 3 | . 2 1 . . . . . . . . . . Repair 3 | . 2 1 . . . . . . . . . . Recycling Unit Hacks 2 | . 1 1 . . . . . . . . . . Report Inventory 2 | . 1 1 . . . . . . . . . . Scanalyzer . | . . . . . . . . . . . . . Garrison Access Hacks 1 | . . . . . . 1 . . . . . . Unlock Access 1 | . . . . . . 1 . . . . . . Unauthorized Hacks 3 | . . 2 . . . . . 1 . . . . Terminals 3 | . . 2 . . . . . 1 . . . . Botnet 3 | . . 2 . . . . . 1 . . . . Fabricators . | . . . . . . . . . . . . . Repair Stations . | . . . . . . . . . . . . . Recycling Units . | . . . . . . . . . . . . . Scanalyzers . | . . . . . . . . . . . . . Garrison Access . | . . . . . . . . . . . . . Data Cores Recovered 2 | . . 2 . . . . . . . . . . Used . | . . . . . . . . . . . . . Hacking Detections 21 | . 7 6 . . . 2 3 3 . . . . Full Trace Events 2 | . 1 . . . . 1 . . . . . . Feedback Events . | . . . . . . . . . . . . . Feedback Blocked . | . . . . . . . . . . . . . Robot Schematics Acquired 2 | . . . . . . . . . . . 2 . Robots Built . | . . . . . . . . . . . . . Authchips . | . . . . . . . . . . . . . Time . | . . . . . . . . . . . . . Total Robot Build Rating . | . . . . . . . . . . . . . Part Schematics Acquired 15 | . . . . . . . . . . . 15 . Parts Built . | . . . . . . . . . . . . . Authchips . | . . . . . . . . . . . . . Time . | . . . . . . . . . . . . . Total Part Build Rating . | . . . . . . . . . . . . . Parts Repaired 3 | . 2 1 . . . . . . . . . . Time 78 | . 52 26 . . . . . . . . . . Parts Recycled . | . . . . . . . . . . . . . Recycled Matter . | . . . . . . . . . . . . . Retrieved Matter . | . . . . . . . . . . . . . Retrieved Components . | . . . . . . . . . . . . . Parts Scanalyzed . | . . . . . . . . . . . . . Part Schematics Acquired . | . . . . . . . . . . . . . Parts Damaged . | . . . . . . . . . . . . . Bothacking | -11 -10 -9 -9 -9 -8 -8 -8 -7 -7 -7 -7 -7 ------------ Run | Yrd Mat Mat Min Exi Min Mat Gar Fac Low Low Zio Dee Used RIF Installer . | . . . . . . . . . . . . . Robots Hacked . | . . . . . . . . . . . . . Non-combat . | . . . . . . . . . . . . . Combat . | . . . . . . . . . . . . . Robot Hacks Applied . | . . . . . . . . . . . . . Relay Couplers Released 6 | . . . . . . . 6 . . . . . Machine Destruction 3 | . . . . . . . 3 . . . . . Programmers 3 | . . . . . . . 3 . . . . . Fabnet Peak Effective % . | . . . . . . . . . . . . . Robots Rewired . | . . . . . . . . . . . . . Allies Hacked . | . . . . . . . . . . . . . Hacks Repelled . | . . . . . . . . . . . . . Allies | -11 -10 -9 -9 -9 -8 -8 -8 -7 -7 -7 -7 -7 -------- Run | Yrd Mat Mat Min Exi Min Mat Gar Fac Low Low Zio Dee Total Allies 5 | . . . 3 . . . 2 . . . . . Largest Group 3 | . . . 3 2 2 . 2 . . . . . Highest-Rated Group 70 | . . . 40 32 32 . 70 . . . . . Highest-Rated Ally 39 | . . . 16 16 16 . 39 . . . . . Initial Warlord ECA Mod 10 | . . . . . . . . 2 2 2 2 2 Total Orders . | . . . . . . . . . . . . . Ally Attacks 42 | . . . 6 . 14 . 22 . . . . . Total Damage 474 | . . . 18 . 134 . 322 . . . . . Kills 6 | . . . 1 . 1 . 4 . . . . . Allies Corrupted . | . . . . . . . . . . . . . Allies Melted 1 | . . . . . 1 . . . . . . . Intel | -11 -10 -9 -9 -9 -8 -8 -8 -7 -7 -7 -7 -7 ------- Run | Yrd Mat Mat Min Exi Min Mat Gar Fac Low Low Zio Dee Active Infowar (turns) 12613 | . 1731 2840 363 367 540 104 192 2018 927 971 1907 653 Optics 6476 | . . . . . . . . 2018 927 971 1907 653 Sensors 1794 | . . 1558 236 . . . . . . . . . Seismic 4343 | . 1731 1282 127 367 540 104 192 . . . . . Robot Analysis Total 7 | . 5 2 . . . . . . . . . . Derelict Logs Recovered 1 | . . . . . . . . . . 1 . . Drone Launches . | . . . . . . . . . . . . . Drone Recoveries . | . . . . . . . . . . . . . Exploration | -11 -10 -9 -9 -9 -8 -8 -8 -7 -7 -7 -7 -7 ------------- Run | Yrd Mat Mat Min Exi Min Mat Gar Fac Low Low Zio Dee Turns Passed 14576 | 86 1939 3143 363 367 540 104 1550 2026 927 971 1907 653 Spaces Moved 5307 | 45 602 1051 151 152 204 27 538 752 387 389 772 237 Core 9 | 9 . . . . . . . . . . . . Treads 5288 | 36 592 1051 151 152 204 27 538 752 387 389 772 237 Legs . | . . . . . . . . . . . . . Wheels 10 | . 10 . . . . . . . . . . . Hover . | . . . . . . . . . . . . . Flight . | . . . . . . . . . . . . . Fastest Speed 50 | 50 160 240 240 240 240 240 240 240 236 236 236 236 Average Speed 244 | 138 278 249 240 240 240 240 240 240 236 236 236 236 Slowest Speed 480 | 160 480 320 240 240 240 240 240 240 240 236 236 236 Overloaded Moves . | . . . . . . . . . . . . . Propulsion Burnouts . | . . . . . . . . . . . . . Robots Hopped . | . . . . . . . . . . . . . Potential Cave-ins . | . . . . . . . . . . . . . Cave-ins Triggered . | . . . . . . . . . . . . . Exploration Rate (%) 53 | 3 93 92 37 48 57 8 69 23 64 58 85 60 Regions Visited 12 Branch Regions 7 Pre-discovered Areas 4 | . . . . 1 . . . . 1 1 1 . Known Exits Taken 1 | . . . . . . 1 . . . . . . Unknown Exits Taken 10 | 1 1 1 1 1 1 . . 1 1 1 1 . Scrap Searched 11 | . . . 1 . 1 . . . 2 4 3 . Spaces Dug . | . . . . . . . . . . . . . Terrain Destroyed 127 | . . 32 . . . . 41 . . 22 . 32 Melee . | . . . . . . . . . . . . . Projectile 2 | . . . . . . . . . . 1 . 1 AOE 125 | . . 32 . . . . 41 . . 21 . 31 Terrain Rammed . | . . . . . . . . . . . . . Walls Destroyed . | . . . . . . . . . . . . . Machines Disabled . | . . . . . . . . . . . . . Actions | -11 -10 -9 -9 -9 -8 -8 -8 -7 -7 -7 -7 -7 --------- Run | Yrd Mat Mat Min Exi Min Mat Gar Fac Low Low Zio Dee Total 6203 | 59 755 1342 152 156 230 41 674 897 398 414 803 282 Wait 276 | . 70 97 1 . 12 . 33 52 3 . 1 7 Move 5296 | 44 601 1050 150 151 203 27 537 751 386 388 771 237 Hop . | . . . . . . . . . . . . . Pick Up 79 | 5 15 27 . 1 . . 10 16 2 2 1 . Fast Attach 16 | 6 1 3 . 1 . . 3 2 . . . . Attach 33 | . 2 4 . 1 1 2 10 7 . . . 6 Detach 1 | . 1 . . . . . . . . . . . Swap 50 | . 4 15 1 . . . 10 8 1 3 2 6 Drop 44 | . . 23 . 2 . . 1 12 3 2 1 . Fire 355 | 4 60 121 . . 14 12 49 47 3 19 . 26 Melee . | . . . . . . . . . . . . . Ram . | . . . . . . . . . . . . . Kick . | . . . . . . . . . . . . . Crush 5 | . 1 2 . . . . . 2 . . . . Escape Stasis 13 | . . . . . . . 13 . . . . . Rewire . | . . . . . . . . . . . . . Trap . | . . . . . . . . . . . . . Miscellaneous 35 | . . . . . . . 8 . . . 27 . Route ------- -11/Scrapyard -10/Materials (discovered 4 exits: *Mat x3 / [*Min]) -9/Materials (discovered 5 exits: *Mat x2 / [*Min x2] / [*Sto]) -9/Mines -9/Exiles -8/Mines -8/Materials -8/Garrison (discovered 3 exits: *Fac x3) -7/Factory (discovered 5 exits: *Fac x4 / [*Low]) -7/Lower Caves -7/Lower Caves -7/Zion (discovered 2 exits: [*Dee] / [*Pro]) -7/Deep Caves History --------- Turn | Location | Event 11 | -11/Scrapyard | Discovered new exit (range 16) 87 | -11/Scrapyard | Entered Materials 287 | -10/Materials | Destroyed 7 combat bots 299 | -10/Materials | Discovered new exit (range 7) 316 | -10/Materials | Build established: Mutant 548 | -10/Materials | Discovered new exit (range 11) 645 | -10/Materials | Central database locked down 1501 | -10/Materials | Discovered new exit (range 7) 1769 | -10/Materials | Discovered new exit (range 13) 1950 | -10/Materials | Repaired Lgt. Treads 1977 | -10/Materials | Repaired Lgt. Treads 2026 | -10/Materials | Entered another Materials area 2026 | -9/Materials | Evolved 2 slots: Propulsion x1, Utility x1 2081 | -9/Materials | Central database locked down 2437 | -9/Materials | Discovered new exit (range 3) 2901 | -9/Materials | Discovered new exit (range 16) 3133 | -9/Materials | Discovered new exit (range 15) 3533 | -9/Materials | Discovered new exit (range 16) 3766 | -9/Materials | Repaired Lgt. Treads 4314 | -9/Materials | Build established: Scavenger-Mutant 4416 | -9/Materials | Core integrity fell below 50% 4880 | -9/Materials | Discovered new exit (range 15) 5169 | -9/Materials | Entered Mines 5170 | -9/Mines | Assembled infested the area 5421 | -9/Mines | Deemed a non-threat by the Exiles lab entrance 5423 | -9/Mines | Discovered new exit (range 5) 5473 | -9/Mines | Assisted by bots powering up and referring to "LRC-V3" 5532 | -9/Mines | Entered Exiles 5532 | -9/Exiles | Accompanied by 2 allies 5593 | -9/Exiles | Met 8R-AWN 5634 | -9/Exiles | Met EX-HEX 5727 | -9/Exiles | Met EX-DEC 5742 | -9/Exiles | Learned location of Zion (-7) 5870 | -9/Exiles | Discovered new exit (range 14) 5899 | -9/Exiles | Entered Mines 5899 | -8/Mines | Accompanied by 2 allies 6427 | -8/Mines | Discovered new exit (range 5) 6439 | -8/Mines | Entered Materials 6439 | -8/Materials | Evolved 2 slots: Propulsion x1, Weapon x1 6484 | -8/Materials | Garrison activated, responded to threat 6543 | -8/Materials | Identified exit to Garrison 6543 | -8/Materials | Entered Garrison 6581 | -8/Garrison | Triggered checkpoint 6725 | -8/Garrison | Triggered checkpoint 6761 | -8/Garrison | Triggered checkpoint 6766 | -8/Garrison | Build established: Scavenger-Tank 6868 | -8/Garrison | Lost 12 parts (1p4n2u5w) 7035 | -8/Garrison | Triggered checkpoint 7201 | -8/Garrison | Triggered checkpoint 7257 | -8/Garrison | Garrison Relay disabled 7333 | -8/Garrison | Discovered new exit (range 11) 7421 | -8/Garrison | Rescued a captive Derelict 7423 | -8/Garrison | Rescued a captive Derelict 7523 | -8/Garrison | Build established: Scavenger-Gunner 7626 | -8/Garrison | Discovered new exit (range 13) 7711 | -8/Garrison | Triggered checkpoint 7927 | -8/Garrison | Discovered new exit (range 9) 8003 | -8/Garrison | Triggered checkpoint 8093 | -8/Garrison | Entered Factory 8093 | -7/Factory | Evolved 2 slots: Utility x2 8409 | -7/Factory | Build established: Scavenger-Tank 8723 | -7/Factory | Discovered new exit (range 17) 10080 | -7/Factory | Identified exit to Factory 10104 | -7/Factory | Discovered new exit (range 6) 10119 | -7/Factory | Entered Lower Caves 10125 | -7/Lower Caves | Met a Warlord Commander 10126 | -7/Lower Caves | Learned location of Warlord (-4) 10127 | -7/Lower Caves | Warlord Commander delivered Encrypted Comm Array 10135 | -7/Lower Caves | Found Encrypted Comm Array 10656 | -7/Lower Caves | Attracted the attention of an 0b10 checkpoint 10818 | -7/Lower Caves | Encountered a Warlord checkpoint 10990 | -7/Lower Caves | Discovered new exit (range 9) 11046 | -7/Lower Caves | Entered another Lower Caves area 11146 | -7/Lower Caves | Encountered a Warlord checkpoint 11547 | -7/Lower Caves | Learned location of Extension (-5) 11935 | -7/Lower Caves | Discovered new exit (range 17) 12017 | -7/Lower Caves | Entered Zion 12154 | -7/Zion | System corruption cleaned by Quarantine Array 12327 | -7/Zion | Discovered new exit (range 7) 12560 | -7/Zion | Learned location of Data Miner (-6) 12603 | -7/Zion | Given the Hacking Drone Bay 12603 | -7/Zion | Found Prototype Device 12636 | -7/Zion | Given A8's code to call for help 12747 | -7/Zion | Received a visual enhancement algorithm 13545 | -7/Zion | Met Imprinter 13912 | -7/Zion | Discovered new exit (range 5) 13915 | -7/Zion | Saw the warning signs outside the Deep Caves entrance 13924 | -7/Zion | Entered Deep Caves 14113 | -7/Deep Caves | Attacked by Z-Imprinter 14122 | -7/Deep Caves | Destroyed Z-Imprinter 14245 | -7/Deep Caves | Z-Facility disabled 14253 | -7/Deep Caves | Identified Hacking Drone Bay 14277 | -7/Deep Caves | Lost 4 parts (2n2u) 14527 | -7/Deep Caves | Spotted AG-23794 14541 | -7/Deep Caves | Build established: Gunner 14562 | -7/Deep Caves | Core integrity fell below 50% 14564 | -7/Deep Caves | Exposed GOLEM chamber 14565 | -7/Deep Caves | Triggered Deep Caves wall 14575 | -7/Deep Caves | Core integrity fell below 20% 14577 | -7/Deep Caves | Destroyed by AG-23794 with Assembled Focal Cannon Last Messages --------------- 14558_ Destroyed Prototype Device. 14559_ AG-23794 GOLEM Unit beginning Prototype Device integration. 14561_ Slug penetrates AG-23794. 14564_ Wall Chamber breached. 14564_ A GOLEM Unit tumbles out of the Wall Chamber. 14564_ Zio. Biocell destroyed. 14571_ Gauss Rifle destroyed. 14574_ GOLEM Unit springs to life. 14574_ Adv. Treads destroyed. 14574_ Med. Treads destroyed. 14574_ Lgt. Treads destroyed. 14575_ AG-44533 GOLEM Unit beginning Prototype Leg integration. 14576_ AG-23794 Prototype Device integration complete. 14576_ A GOLEM Unit tumbles out of the Wall Chamber. 14577_ Enh. Autogun destroyed. Map ----- +----------------------------------------------------+ | ??????????????????????????????????????????????? | | ??????????????????????????????????????????????? | | ??????????????????????????????????????????????? | | ??????????????????????????????????????????????? | | ??????????????????????????????????????????????? | | ??????????????????????????????????????????????? | | ??????????????????????????????????????????????? | | ????????????????????? ???#????????????????????? | | ?????????????????? ??? ????????????????????? | | ????????????????! ### #???????????????????? | | ????????????? ! / # ???????????????????? | | ??????????? ! b ##??????????????????? | | ?????????? a h s #??????????????????? | | ????????? a ??????????????????? | | ????????? aa ! ! #?????##???????????? | | ?????????aa = ##??## ##??????????? | | ????????a #??# ##?????????? | | ???????? ab #??# #?????????? | | ???????? a a ! g #??# ##????????? | | ????????# = != #?## #????????? | | ?????????" = ! = b ### ?????????? | | ?????????" a ! ;## ??????????? | | ?????????" ;# ???????????? | | ???????"!" ## #???????????? | | ???????"!G ! * # #???????????? | | ????????# @ # ##??????????? | | ????????" !*s l ; ##?????##### | | ????????" # ##??### # | | ????????" G !! #### | | ????????""" ## | | ????????" * # | | ????????"" l # # | | ????????" # # | | ????????"" ## | | ????????" # # ### | | ????????? #### ## ## ##?## ### | | ?????????"" ##???# ?# ?###???########## ##?? | | ?????????? ??????##?# ????????????????####??? | | ???????????#???????????#??????????????????????? | | | | | | | | | | | | | | | | | | | | | | | +----------------------------------------------------+ Best States ------------- Heat Dissipation 60 Energy Generation 15 Energy Capacity 1400 Matter Stores 334 Matter Capacity 500 Sight Range 18 Robot Scan Range 14 Terrain Scan Density 10 Armor Coverage 375 Core Shielding 20 Propulsion Shielding 33 Utility Shielding 66 Evasion (%) 50 Core Analysis 6 Recoil Reduction 4 Item Schematics ----------------- Imp. Melee Analysis Suite | -7/Zion | Archive Matter Compressor | -7/Zion | Archive Corruption Screen | -7/Zion | Archive Fission Core | -7/Zion | Archive Imp. Titanium Leg | -7/Zion | Archive Angular Momentum Engine | -7/Zion | Archive Gauss Rifle | -7/Zion | Archive Wave Gun | -7/Zion | Archive Imp. Shock Absorption System | -7/Zion | Archive Adv. ECM Suite | -7/Zion | Archive Imp. Trap Scanner | -7/Zion | Archive Xenon Bombardment Thruster | -7/Zion | Archive Adv. Heat Sink | -7/Zion | Archive System Guard | -7/Zion | Archive Imp. Field Recycling Unit | -7/Zion | Archive Robot Schematics ------------------ R-06 Scavenger | -7/Zion | Archive K-01 Serf | -7/Zion | Archive Fabricated ------------ Nothing Repaired ---------- Lgt. Treads | 9% | -10/Materials Lgt. Treads | 51% | -10/Materials Lgt. Treads | 35% | -9/Materials Alien Tech Used ----------------- None Achievements -------------- None Challenges ------------ None Game ------ Seed ThunderImprinterShockpuncher Manual? 0 Play Time 00:52:27 Cumulative 188.5 hours Start 2025.09.22 @ 12:10:47 End 2025.09.22 @ 13:07:41 Sessions 1 Manual Loads 0 Difficulty Rogue Special Mode None Game No. 237 Rogue 237 Adventurer 0 Explorer 0 Win Type - Total 3 Types 3/0/0/0/0/0/0/0/0/0 Lore% 70 Gallery% 55 Achievement% 54 Wizard Run 0 Options --------- Layout 1 ASCII 0 Keyboard 1 Movement Numpad Keybinds 0 Fullscreen 1 Font 24/Smallcaps Map View 50x35 Zoom Use 0% Tactical HUD 1 Map Filters NONE Filters NONE Steam 1 RUN: 32893cad-cfc7-42a6-86d5-b8ec63a1a37c